[Event "*** Titled Tuesday Blitz"]
[Site "Chess.com"]
[Date "2018.09.04"]
[Round "10"]
[White "NateSolon"]
[Black "Mikhail_Golubev"]
[Result "0-1"]
[WhiteElo "2491"]
[BlackElo "2436"]
[TimeControl "180+2"]
[EndTime "15:53:51 PDT"]
[Termination "Mikhail_Golubev won by resignation"]

1. d4 {[%clk 0:03:01.9]} 1... Nf6 {[%clk 0:02:59.9]} 2. Bg5 {[%clk 0:03:02.3]}
2... d6 {[%clk 0:02:56.8]} 3. Bxf6 {[%clk 0:02:59.5]} 3... exf6 {[%clk
0:02:57.3]} 4. c4 {[%clk 0:03:00]} 4... f5 {[%clk 0:02:53.9]} 5. e3 {[%clk
0:02:59.8]} 5... g6 {[%clk 0:02:54.6]} 6. Nc3 {[%clk 0:03:00.3]} 6... Bg7 {[%clk
0:02:54.7]} 7. g3 {[%clk 0:03:01.5]} 7... O-O {[%clk 0:02:55]} 8. Bg2 {[%clk
0:03:02.5]} 8... c6 {[%clk 0:02:55.2]} 9. Nge2 {[%clk 0:03:02.2]} 9... Nd7
{[%clk 0:02:56]} 10. O-O {[%clk 0:03:00.5]} 10... Nf6 {[%clk 0:02:56.5]} 11. b4
{[%clk 0:03:00]} 11... Be6 {[%clk 0:02:56.2]} 12. Qd3 {[%clk 0:02:57.7]} 12...
d5 {[%clk 0:02:37.9]} 13. c5 {[%clk 0:02:44.8]} 13... Ne4 {[%clk 0:02:28.9]} 14.
b5 {[%clk 0:02:41.6]} 14... Qa5 {[%clk 0:02:06.9]} 15. Rab1 {[%clk 0:02:40.3]}
15... cxb5 {[%clk 0:01:53.8]} 16. Rxb5 {[%clk 0:02:26.5]} 16... Qa6 {[%clk
0:01:53.7]} 17. Qc2 {[%clk 0:02:08.5]} 17... b6 {[%clk 0:01:38.6]} 18. cxb6
{[%clk 0:01:53.8]} 18... axb6 {[%clk 0:01:37.4]} 19. Rfb1 {[%clk 0:01:54.5]}
19... Rfc8 {[%clk 0:01:10.7]} 20. Rxb6 {[%clk 0:01:19]} 20... Qa5 {[%clk
0:01:10.7]} 21. Bxe4 {[%clk 0:01:19.5]} 21... dxe4 {[%clk 0:01:06.1]} 22. a4
{[%clk 0:01:10.7]} 22... Bc4 {[%clk 0:00:57.5]} 23. Qb2 {[%clk 0:01:04.1]} 23...
Bd3 {[%clk 0:00:57.4]} 24. Ra1 {[%clk 0:00:59.4]} 24... Bf8 {[%clk 0:00:49.6]}
25. Rb7 {[%clk 0:00:57.4]} 25... Ba6 {[%clk 0:00:44.5]} 26. Rb6 {[%clk 0:00:53]}
26... Be7 {[%clk 0:00:26.6]} 27. Rc1 {[%clk 0:00:43]} 27... Ba3 {[%clk
0:00:19.9]} 28. Qxa3 {[%clk 0:00:21.5]} 28... Qxb6 {[%clk 0:00:19.9]} 29. Nd5
{[%clk 0:00:22.9]} 29... Rxc1+ {[%clk 0:00:18.7]} 30. Nxc1 {[%clk 0:00:24.8]}
30... Qd8 {[%clk 0:00:16.3]} 31. Ne7+ {[%clk 0:00:21.7]} 31... Kg7 {[%clk
0:00:16.5]} 32. Nb3 {[%clk 0:00:20.8]} 32... Rb8 {[%clk 0:00:15.2]} 33. Nc6
{[%clk 0:00:21.2]} 33... Qc7 {[%clk 0:00:10.2]} 34. Nxb8 {[%clk 0:00:22.1]}
34... Be2 {[%clk 0:00:06.8]} 35. Qc5 {[%clk 0:00:19.6]} 35... Qxb8 {[%clk
0:00:06.9]} 36. Qe5+ {[%clk 0:00:20.8]} 36... Qxe5 {[%clk 0:00:07.1]} 37. dxe5
{[%clk 0:00:22.7]} 37... f6 {[%clk 0:00:05.5]} 38. e6 {[%clk 0:00:22.9]} 38...
Kf8 {[%clk 0:00:05.8]} 39. Nc5 {[%clk 0:00:23.4]} 39... Ke7 {[%clk 0:00:06.6]}
40. a5 {[%clk 0:00:24.3]} 40... Kd6 {[%clk 0:00:05.7]} 41. a6 {[%clk 0:00:25.6]}
41... Bb5 {[%clk 0:00:06.3]} 42. a7 {[%clk 0:00:22]} 42... Bc6 {[%clk
0:00:06.5]} 43. Na6 {[%clk 0:00:23.5]} 43... Kxe6 {[%clk 0:00:06.3]} 44. a8=Q
{[%clk 0:00:23.8]} 44... Bxa8 {[%clk 0:00:06.1]} 45. Nc7+ {[%clk 0:00:25.4]}
45... Kd6 {[%clk 0:00:07.2]} 46. Nxa8 {[%clk 0:00:27.3]} 46... Kc6 {[%clk
0:00:08.4]} 47. Kf1 {[%clk 0:00:22.5]} 47... Kb7 {[%clk 0:00:09.3]} 48. Ke2
{[%clk 0:00:21.7]} 48... Kxa8 {[%clk 0:00:09.7]} 49. Kd2 {[%clk 0:00:23.4]}
49... Kb7 {[%clk 0:00:11.1]} 50. Kc3 {[%clk 0:00:25.3]} 50... Kc6 {[%clk
0:00:11.9]} 51. Kc4 {[%clk 0:00:26.7]} 51... Kd6 {[%clk 0:00:12.8]} 52. Kd4
{[%clk 0:00:27.7]} 52... Kc6 {[%clk 0:00:12.3]} 53. Kc4 {[%clk 0:00:28.8]} 53...
Kd6 {[%clk 0:00:13.3]} 54. Kd4 {[%clk 0:00:29.5]} 54... h6 {[%clk 0:00:13.8]}
55. h4 {[%clk 0:00:29.8]} 55... Kc6 {[%clk 0:00:13.2]} 56. Kc4 {[%clk
0:00:30.6]} 56... g5 {[%clk 0:00:13.3]} 57. h5 {[%clk 0:00:26.5]} 57... Kd6
{[%clk 0:00:12.8]} 58. Kd4 {[%clk 0:00:27.1]} 58... Ke6 {[%clk 0:00:13.7]} 59.
Kc5 {[%clk 0:00:27.6]} 59... Ke5 {[%clk 0:00:14.5]} 60. Kc4 {[%clk 0:00:28.8]}
60... f4 {[%clk 0:00:15.2]} 61. Kc5 {[%clk 0:00:21.5]} 61... Kf5 {[%clk
0:00:13.1]} 62. Kd5 {[%clk 0:00:22.3]} 62... Kg4 {[%clk 0:00:10.5]} 63. gxf4
{[%clk 0:00:20.8]} 63... gxf4 {[%clk 0:00:09.4]} 64. Kxe4 {[%clk 0:00:22]} 64...
f3 {[%clk 0:00:09.5]} 65. Kd5 {[%clk 0:00:18.8]} 65... Kh3 {[%clk 0:00:09.9]}
66. Ke6 {[%clk 0:00:17.2]} 66... Kg2 {[%clk 0:00:10.9]} 67. Kxf6 {[%clk
0:00:17.9]} 67... Kxf2 {[%clk 0:00:12.2]} 68. e4 {[%clk 0:00:19.8]} 68... Kg3
{[%clk 0:00:11.2]} 69. e5 {[%clk 0:00:21.7]} 69... f2 {[%clk 0:00:12]} 70. e6
{[%clk 0:00:21.6]} 70... f1=Q+ {[%clk 0:00:12.2]} 71. Kg7 {[%clk 0:00:22.7]}
71... Qe2 {[%clk 0:00:11.5]} 0-1

[Event "*** Titled Tuesday Blitz"]
[Site "Chess.com"]
[Date "2018.09.04"]
[Round "10"]
[White "ShadyH9"]
[Black "lucasmito"]
[Result "1-0"]
[WhiteElo "2176"]
[BlackElo "2336"]
[TimeControl "180+2"]
[EndTime "15:53:57 PDT"]
[Termination "ShadyH9 won by checkmate"]

1. d4 {[%clk 0:03:01.9]} 1... Nf6 {[%clk 0:02:58.2]} 2. c4 {[%clk 0:03:02.3]}
2... g6 {[%clk 0:02:57.9]} 3. Nc3 {[%clk 0:03:03.2]} 3... d5 {[%clk 0:02:58.3]}
4. cxd5 {[%clk 0:03:05.1]} 4... Nxd5 {[%clk 0:02:02.5]} 5. Bd2 {[%clk 0:03:05]}
5... Bg7 {[%clk 0:02:00.7]} 6. e4 {[%clk 0:03:04.8]} 6... Nb6 {[%clk 0:02:02.3]}
7. Be3 {[%clk 0:03:04.6]} 7... O-O {[%clk 0:02:01.2]} 8. h3 {[%clk 0:03:01.2]}
8... Nc6 {[%clk 0:01:56.7]} 9. Nf3 {[%clk 0:03:01.7]} 9... f5 {[%clk 0:01:50.2]}
10. Qb3+ {[%clk 0:02:51.4]} 10... Kh8 {[%clk 0:01:46.8]} 11. exf5 {[%clk
0:02:50.9]} 11... Bxf5 {[%clk 0:01:44.6]} 12. Rd1 {[%clk 0:02:44.3]} 12... a5
{[%clk 0:01:15.6]} 13. Bb5 {[%clk 0:02:27.2]} 13... Nb4 {[%clk 0:01:01.9]} 14.
Rd2 {[%clk 0:01:49.6]} 14... N6d5 {[%clk 0:00:56]} 15. Nxd5 {[%clk 0:01:46.9]}
15... Nxd5 {[%clk 0:00:57.9]} 16. Ne5 {[%clk 0:01:34.4]} 16... Be6 {[%clk
0:00:43.2]} 17. Bc4 {[%clk 0:01:24.5]} 17... Rb8 {[%clk 0:00:42.9]} 18. a4
{[%clk 0:01:06.7]} 18... c6 {[%clk 0:00:43]} 19. Qa3 {[%clk 0:00:56.1]} 19...
Qd6 {[%clk 0:00:43]} 20. Bxd5 {[%clk 0:00:29.3]} 20... Bxd5 {[%clk 0:00:36.6]}
21. Qxd6 {[%clk 0:00:28.1]} 21... exd6 {[%clk 0:00:38]} 22. Nd7 {[%clk
0:00:29.1]} 22... Bxg2 {[%clk 0:00:36.1]} 23. Rh2 {[%clk 0:00:29.9]} 23... Bd5
{[%clk 0:00:34]} 24. Nxb8 {[%clk 0:00:30]} 24... Rxb8 {[%clk 0:00:35.9]} 25. h4
{[%clk 0:00:26.1]} 25... Bb3 {[%clk 0:00:35.9]} 26. h5 {[%clk 0:00:26.2]} 26...
gxh5 {[%clk 0:00:35.1]} 27. Rxh5 {[%clk 0:00:19.8]} 27... b6 {[%clk 0:00:34.3]}
28. Bf4 {[%clk 0:00:18.7]} 28... Re8+ {[%clk 0:00:24.1]} 29. Kf1 {[%clk
0:00:17.8]} 29... d5 {[%clk 0:00:23.2]} 30. Be5 {[%clk 0:00:13.3]} 30... Bxa4
{[%clk 0:00:20.3]} 31. f4 {[%clk 0:00:12.2]} 31... Bb5+ {[%clk 0:00:20.3]} 32.
Ke1 {[%clk 0:00:11.4]} 32... Kg8 {[%clk 0:00:16.5]} 33. Rdh2 {[%clk 0:00:11.1]}
33... Bxe5 {[%clk 0:00:13.4]} 34. dxe5 {[%clk 0:00:10.5]} 34... Re7 {[%clk
0:00:14.9]} 35. Kd2 {[%clk 0:00:09.5]} 35... c5 {[%clk 0:00:15.1]} 36. Ke3
{[%clk 0:00:09.6]} 36... d4+ {[%clk 0:00:15.5]} 37. Ke4 {[%clk 0:00:10.5]} 37...
Bc6+ {[%clk 0:00:16.1]} 38. Kf5 {[%clk 0:00:10.6]} 38... Bd7+ {[%clk 0:00:17.3]}
39. Ke4 {[%clk 0:00:09.8]} 39... Bc6+ {[%clk 0:00:17.7]} 40. Kd3 {[%clk
0:00:09.5]} 40... Rd7 {[%clk 0:00:13.4]} 41. Rh6 {[%clk 0:00:10]} 41... Bb5+
{[%clk 0:00:13]} 42. Kd2 {[%clk 0:00:10.9]} 42... Rb7 {[%clk 0:00:13]} 43. Rd6
{[%clk 0:00:09.8]} 43... Be8 {[%clk 0:00:13]} 44. Rd8 {[%clk 0:00:05.9]} 44...
Kf8 {[%clk 0:00:13.4]} 45. f5 {[%clk 0:00:07]} 45... Ke7 {[%clk 0:00:07.3]} 46.
Rxh7+ {[%clk 0:00:07.2]} 46... Kxd8 {[%clk 0:00:07.4]} 47. Rxb7 {[%clk 0:00:08]}
47... b5 {[%clk 0:00:09.3]} 48. e6 {[%clk 0:00:03.4]} 48... Bc6 {[%clk
0:00:06.9]} 49. Ra7 {[%clk 0:00:02.2]} 49... a4 {[%clk 0:00:06.9]} 50. f6 {[%clk
0:00:02.9]} 50... Ke8 {[%clk 0:00:04.8]} 51. f7+ {[%clk 0:00:03.4]} 51... Kf8
{[%clk 0:00:04.2]} 52. Rc7 {[%clk 0:00:04.6]} 52... Bd5 {[%clk 0:00:04.9]} 53.
Rc8+ {[%clk 0:00:05.3]} 53... Ke7 {[%clk 0:00:04.6]} 54. f8=Q+ {[%clk
0:00:06.3]} 54... Kxe6 {[%clk 0:00:06.5]} 55. Re8+ {[%clk 0:00:06]} 55... Kd7
{[%clk 0:00:06.4]} 56. Rd8+ {[%clk 0:00:06.8]} 56... Kc7 {[%clk 0:00:07.4]} 57.
Qd6+ {[%clk 0:00:07.6]} 57... Kb7 {[%clk 0:00:07.8]} 58. Rd7+ {[%clk 0:00:07.8]}
58... Ka8 {[%clk 0:00:06.7]} 59. Qf8# {[%clk 0:00:08.1]} 1-0

[Event "*** Titled Tuesday Blitz"]
[Site "Chess.com"]
[Date "2018.09.04"]
[Round "10"]
[White "ddtru"]
[Black "novocane"]
[Result "0-1"]
[WhiteElo "2222"]
[BlackElo "2140"]
[TimeControl "180+2"]
[EndTime "15:54:26 PDT"]
[Termination "novocane won by checkmate"]

1. d4 {[%clk 0:03:01.9]} 1... Nf6 {[%clk 0:03:00.2]} 2. c4 {[%clk 0:03:02.5]}
2... e6 {[%clk 0:03:01.5]} 3. Nc3 {[%clk 0:03:02.8]} 3... Bb4 {[%clk 0:03:02.3]}
4. e3 {[%clk 0:03:03.4]} 4... O-O {[%clk 0:03:02.8]} 5. Bd3 {[%clk 0:03:03.4]}
5... c5 {[%clk 0:03:03.1]} 6. Ne2 {[%clk 0:03:01.7]} 6... d5 {[%clk 0:03:03.5]}
7. cxd5 {[%clk 0:03:01.8]} 7... exd5 {[%clk 0:03:03.2]} 8. a3 {[%clk 0:03:01.7]}
8... Bxc3+ {[%clk 0:02:45]} 9. bxc3 {[%clk 0:03:00.5]} 9... b6 {[%clk
0:02:45.7]} 10. O-O {[%clk 0:02:59.9]} 10... Ba6 {[%clk 0:02:45.6]} 11. Bxa6
{[%clk 0:03:00]} 11... Nxa6 {[%clk 0:02:46.6]} 12. Qd3 {[%clk 0:03:01]} 12... c4
{[%clk 0:02:47.5]} 13. Qc2 {[%clk 0:03:01.6]} 13... Nc7 {[%clk 0:02:44.3]} 14.
f3 {[%clk 0:03:02.6]} 14... Re8 {[%clk 0:02:43.7]} 15. e4 {[%clk 0:03:03]} 15...
dxe4 {[%clk 0:02:42.6]} 16. fxe4 {[%clk 0:03:03.6]} 16... Nxe4 {[%clk
0:02:43.6]} 17. Bf4 {[%clk 0:02:48.8]} 17... Nd5 {[%clk 0:02:43.6]} 18. Be5
{[%clk 0:02:44.6]} 18... Nef6 {[%clk 0:01:41.5]} 19. Rf3 {[%clk 0:02:36.4]}
19... Nd7 {[%clk 0:01:05.5]} 20. Bxg7 {[%clk 0:01:46.7]} 20... Kxg7 {[%clk
0:00:44.6]} 21. Rxf7+ {[%clk 0:01:44.1]} 21... Kxf7 {[%clk 0:00:45.6]} 22. Qxh7+
{[%clk 0:01:44.2]} 22... Ke6 {[%clk 0:00:46.2]} 23. Ng3 {[%clk 0:01:12.8]} 23...
N7f6 {[%clk 0:00:33.3]} 24. Qf5+ {[%clk 0:00:40.3]} 24... Kd6 {[%clk 0:00:34]}
25. Qc2 {[%clk 0:00:36.3]} 25... a6 {[%clk 0:00:28]} 26. Nf5+ {[%clk 0:00:31.1]}
26... Kc6 {[%clk 0:00:26.1]} 27. a4 {[%clk 0:00:31.2]} 27... Ne3 {[%clk
0:00:19.3]} 28. Nxe3 {[%clk 0:00:20.4]} 28... Rxe3 {[%clk 0:00:19.8]} 29. Rf1
{[%clk 0:00:20.8]} 29... Nd5 {[%clk 0:00:19.2]} 30. a5 {[%clk 0:00:20.4]} 30...
b5 {[%clk 0:00:19]} 31. Qg6+ {[%clk 0:00:18.7]} 31... Qd6 {[%clk 0:00:19.8]} 32.
Qf7 {[%clk 0:00:17]} 32... Re7 {[%clk 0:00:14.2]} 33. Qf3 {[%clk 0:00:17.3]}
33... Rae8 {[%clk 0:00:14.5]} 34. h3 {[%clk 0:00:16.8]} 34... Re1 {[%clk
0:00:15.1]} 35. Qf7 {[%clk 0:00:16.4]} 35... Rxf1+ {[%clk 0:00:15.6]} 36. Qxf1
{[%clk 0:00:17.1]} 36... Rf8 {[%clk 0:00:15.8]} 37. Qb1 {[%clk 0:00:15.3]} 37...
Qf4 {[%clk 0:00:15.8]} 38. Qg6+ {[%clk 0:00:15]} 38... Qf6 {[%clk 0:00:16]} 39.
Qh7 {[%clk 0:00:11.7]} 39... Qf1+ {[%clk 0:00:16.4]} 40. Kh2 {[%clk 0:00:12.6]}
40... Qf4+ {[%clk 0:00:17.4]} 41. Kg1 {[%clk 0:00:12.7]} 41... Qe3+ {[%clk
0:00:17.9]} 42. Kh2 {[%clk 0:00:13.1]} 42... Qf4+ {[%clk 0:00:18.5]} 43. Kg1
{[%clk 0:00:13.6]} 43... Rf7 {[%clk 0:00:18.6]} 44. Qg8 {[%clk 0:00:09.9]} 44...
Ne3 {[%clk 0:00:14.5]} 45. Qc8+ {[%clk 0:00:04]} 45... Kd6 {[%clk 0:00:12.7]}
46. Qb8+ {[%clk 0:00:04.5]} 46... Ke6 {[%clk 0:00:11.9]} 47. Qe8+ {[%clk
0:00:05.1]} 47... Kf6 {[%clk 0:00:11.7]} 48. Qh8+ {[%clk 0:00:05.7]} 48... Rg7
{[%clk 0:00:12.5]} 49. Qf8+ {[%clk 0:00:06.1]} 49... Rf7 {[%clk 0:00:13.8]} 50.
Qh8+ {[%clk 0:00:07]} 50... Kf5 {[%clk 0:00:14.7]} 51. Qh7+ {[%clk 0:00:07.5]}
51... Ke6 {[%clk 0:00:15.4]} 52. Qg6+ {[%clk 0:00:07.1]} 52... Rf6 {[%clk
0:00:14.3]} 53. Qe8+ {[%clk 0:00:07.9]} 53... Kf5 {[%clk 0:00:12.8]} 54. Qd7+
{[%clk 0:00:07.6]} 54... Ke4 {[%clk 0:00:12.9]} 55. Qh7+ {[%clk 0:00:06]} 55...
Qf5 {[%clk 0:00:12.3]} 56. Qh4+ {[%clk 0:00:06.1]} 56... Kd3 {[%clk 0:00:11.7]}
57. Qe1 {[%clk 0:00:04.1]} 57... Qf1+ {[%clk 0:00:12.5]} 58. Qxf1+ {[%clk
0:00:05.2]} 58... Rxf1+ {[%clk 0:00:13.3]} 59. Kh2 {[%clk 0:00:06.2]} 59... Rf2
{[%clk 0:00:14.7]} 60. h4 {[%clk 0:00:06.8]} 60... Rxg2+ {[%clk 0:00:15.9]} 61.
Kh3 {[%clk 0:00:08.2]} 61... Rg6 {[%clk 0:00:16.4]} 62. h5 {[%clk 0:00:09.2]}
62... Rh6 {[%clk 0:00:17.5]} 63. Kh4 {[%clk 0:00:10.2]} 63... Kxc3 {[%clk
0:00:18.5]} 64. d5 {[%clk 0:00:11.1]} 64... Nxd5 {[%clk 0:00:19.4]} 65. Kg5
{[%clk 0:00:12.1]} 65... Rh8 {[%clk 0:00:20.1]} 66. h6 {[%clk 0:00:13.4]} 66...
Kd4 {[%clk 0:00:21]} 67. Kg6 {[%clk 0:00:14.6]} 67... c3 {[%clk 0:00:21.3]} 68.
Kg7 {[%clk 0:00:16]} 68... Rd8 {[%clk 0:00:21.7]} 69. h7 {[%clk 0:00:17.2]}
69... c2 {[%clk 0:00:22.8]} 70. h8=Q {[%clk 0:00:16.9]} 70... Rxh8 {[%clk
0:00:21]} 71. Kxh8 {[%clk 0:00:17.8]} 71... c1=Q {[%clk 0:00:22.2]} 72. Kh7
{[%clk 0:00:18.7]} 72... Qg1 {[%clk 0:00:22.7]} 73. Kh6 {[%clk 0:00:19.2]} 73...
Ke5 {[%clk 0:00:23.4]} 74. Kh5 {[%clk 0:00:19.8]} 74... Kf5 {[%clk 0:00:24.7]}
75. Kh4 {[%clk 0:00:20.8]} 75... Qh2# {[%clk 0:00:25]} 0-1

[Event "*** Titled Tuesday Blitz"]
[Site "Chess.com"]
[Date "2018.09.04"]
[Round "10"]
[White "dimke2802"]
[Black "GHANDEEVAM2003"]
[Result "0-1"]
[WhiteElo "2454"]
[BlackElo "2695"]
[TimeControl "180+2"]
[EndTime "15:55:14 PDT"]
[Termination "GHANDEEVAM2003 won by checkmate"]

1. d4 {[%clk 0:03:01.9]} 1... Nf6 {[%clk 0:02:59.8]} 2. Nf3 {[%clk 0:02:58.4]}
2... g6 {[%clk 0:02:58.9]} 3. c4 {[%clk 0:02:59.2]} 3... Bg7 {[%clk 0:02:59.8]}
4. g3 {[%clk 0:03:00.2]} 4... O-O {[%clk 0:03:00]} 5. Bg2 {[%clk 0:03:01.1]}
5... d6 {[%clk 0:03:01.3]} 6. O-O {[%clk 0:03:01.7]} 6... Nc6 {[%clk 0:03:02.6]}
7. Nc3 {[%clk 0:03:02.6]} 7... Bf5 {[%clk 0:03:04]} 8. d5 {[%clk 0:03:00.6]}
8... Na5 {[%clk 0:03:03.8]} 9. Nd4 {[%clk 0:03:01.3]} 9... Bd7 {[%clk 0:03:03]}
10. Qd3 {[%clk 0:03:02.2]} 10... Ng4 {[%clk 0:02:57.4]} 11. f4 {[%clk
0:03:01.9]} 11... c5 {[%clk 0:02:51.9]} 12. Nc2 {[%clk 0:02:50.9]} 12... a6
{[%clk 0:02:39.8]} 13. Rb1 {[%clk 0:02:46.3]} 13... b5 {[%clk 0:02:39.4]} 14. b3
{[%clk 0:02:45.8]} 14... Rb8 {[%clk 0:02:34.9]} 15. Bd2 {[%clk 0:02:42.8]} 15...
Qc7 {[%clk 0:02:23.1]} 16. h3 {[%clk 0:02:35.5]} 16... Nh6 {[%clk 0:02:23.6]}
17. e4 {[%clk 0:02:22.7]} 17... f5 {[%clk 0:02:23.5]} 18. Ne3 {[%clk 0:02:22.4]}
18... Bd4 {[%clk 0:02:09.2]} 19. Kh1 {[%clk 0:02:13.7]} 19... Bxe3 {[%clk
0:01:51.1]} 20. Bxe3 {[%clk 0:02:07.8]} 20... b4 {[%clk 0:01:52.3]} 21. Ne2
{[%clk 0:01:58.1]} 21... fxe4 {[%clk 0:01:53.2]} 22. Qc2 {[%clk 0:01:47.7]}
22... Rbe8 {[%clk 0:01:42.9]} 23. g4 {[%clk 0:01:44]} 23... e6 {[%clk
0:01:38.3]} 24. Ng3 {[%clk 0:01:41.3]} 24... exd5 {[%clk 0:01:32.7]} 25. cxd5
{[%clk 0:01:41.5]} 25... Bb5 {[%clk 0:01:34]} 26. Rf2 {[%clk 0:01:35.5]} 26...
Bd3 {[%clk 0:01:34.6]} 27. Qb2 {[%clk 0:01:32.6]} 27... Bxb1 {[%clk 0:01:34.1]}
28. Qxb1 {[%clk 0:01:34.5]} 28... c4 {[%clk 0:01:33.5]} 29. f5 {[%clk
0:01:31.1]} 29... Qg7 {[%clk 0:01:24]} 30. Qc1 {[%clk 0:01:22.4]} 30... cxb3
{[%clk 0:00:55.6]} 31. Bxh6 {[%clk 0:01:21.5]} 31... Qc3 {[%clk 0:00:57]} 32.
Qxc3 {[%clk 0:00:27.9]} 32... bxc3 {[%clk 0:00:58.9]} 33. axb3 {[%clk
0:00:29.3]} 33... e3 {[%clk 0:00:58.7]} 34. Rc2 {[%clk 0:00:28.1]} 34... Rf7
{[%clk 0:01:00.2]} 35. Rxc3 {[%clk 0:00:25.4]} 35... Rfe7 {[%clk 0:00:53]} 36.
f6 {[%clk 0:00:24.9]} 36... e2 {[%clk 0:00:43]} 37. Nxe2 {[%clk 0:00:20.8]}
37... Rxe2 {[%clk 0:00:44.9]} 38. Rc7 {[%clk 0:00:21.4]} 38... Rf2 {[%clk
0:00:44.2]} 39. g5 {[%clk 0:00:11.3]} 39... Nxb3 {[%clk 0:00:36.3]} 40. Kg1
{[%clk 0:00:11.5]} 40... Rf5 {[%clk 0:00:33.2]} 41. Be4 {[%clk 0:00:12]} 41...
Rf4 {[%clk 0:00:29.2]} 42. h4 {[%clk 0:00:10.3]} 42... Nc5 {[%clk 0:00:24.1]}
43. Bg2 {[%clk 0:00:08.7]} 43... Nd3 {[%clk 0:00:22.7]} 44. Bh3 {[%clk
0:00:05.4]} 44... Re1+ {[%clk 0:00:19.9]} 45. Kh2 {[%clk 0:00:05.5]} 45... Rf2+
{[%clk 0:00:20.6]} 46. Bg2 {[%clk 0:00:06.8]} 46... Re8 {[%clk 0:00:21.5]} 47.
Rg7+ {[%clk 0:00:07.5]} 47... Kh8 {[%clk 0:00:22.2]} 48. Kg3 {[%clk 0:00:08.8]}
48... Rf5 {[%clk 0:00:16.4]} 49. Ra7 {[%clk 0:00:08.8]} 49... Kg8 {[%clk
0:00:10.4]} 50. Rg7+ {[%clk 0:00:08.8]} 50... Kh8 {[%clk 0:00:11.6]} 51. Ra7
{[%clk 0:00:09.6]} 51... Nf4 {[%clk 0:00:10.7]} 52. Bg7+ {[%clk 0:00:06]} 52...
Kg8 {[%clk 0:00:10.4]} 53. Bh6 {[%clk 0:00:04.3]} 53... Nh5+ {[%clk 0:00:07.1]}
54. Kh2 {[%clk 0:00:04.9]} 54... Nf4 {[%clk 0:00:08.1]} 55. Kg3 {[%clk
0:00:04.1]} 55... Nxg2 {[%clk 0:00:08.4]} 56. Kxg2 {[%clk 0:00:05.2]} 56... Rc8
{[%clk 0:00:07.5]} 57. Rg7+ {[%clk 0:00:04.5]} 57... Kh8 {[%clk 0:00:08.9]} 58.
Rb7 {[%clk 0:00:05.2]} 58... Rxd5 {[%clk 0:00:08.9]} 59. Bg7+ {[%clk 0:00:06.4]}
59... Kg8 {[%clk 0:00:09.6]} 60. Bh6 {[%clk 0:00:07.7]} 60... Rf5 {[%clk
0:00:10.4]} 61. Rb6 {[%clk 0:00:08.7]} 61... Rd8 {[%clk 0:00:10.1]} 62. Rxa6
{[%clk 0:00:09.6]} 62... d5 {[%clk 0:00:11.2]} 63. Ra3 {[%clk 0:00:10.5]} 63...
d4 {[%clk 0:00:12.4]} 64. Rd3 {[%clk 0:00:12]} 64... Kf7 {[%clk 0:00:13.8]} 65.
Kg3 {[%clk 0:00:12]} 65... Ke6 {[%clk 0:00:14.7]} 66. Kg4 {[%clk 0:00:13.5]}
66... Rd7 {[%clk 0:00:15.1]} 67. h5 {[%clk 0:00:14.3]} 67... Kd5 {[%clk
0:00:15.9]} 68. hxg6 {[%clk 0:00:15.4]} 68... hxg6 {[%clk 0:00:17.8]} 69. Rd1
{[%clk 0:00:16.5]} 69... Kc4 {[%clk 0:00:19]} 70. Rc1+ {[%clk 0:00:17.5]} 70...
Kd3 {[%clk 0:00:20.2]} 71. Rc8 {[%clk 0:00:17.8]} 71... Ke2 {[%clk 0:00:20.3]}
72. Rg8 {[%clk 0:00:19]} 72... d3 {[%clk 0:00:21.5]} 73. Rxg6 {[%clk 0:00:20.1]}
73... d2 {[%clk 0:00:22.9]} 74. Kxf5 {[%clk 0:00:20.8]} 74... d1=Q {[%clk
0:00:24.4]} 75. Rg7 {[%clk 0:00:21.6]} 75... Qd3+ {[%clk 0:00:24.4]} 76. Kg4
{[%clk 0:00:22.5]} 76... Rxg7 {[%clk 0:00:17.9]} 77. Bxg7 {[%clk 0:00:21.7]}
77... Qg6 {[%clk 0:00:18.8]} 78. Kf4 {[%clk 0:00:22.4]} 78... Kd3 {[%clk
0:00:18.9]} 79. Ke5 {[%clk 0:00:18.8]} 79... Qxg5+ {[%clk 0:00:16.6]} 80. Ke6
{[%clk 0:00:20.2]} 80... Ke4 {[%clk 0:00:17.5]} 81. f7 {[%clk 0:00:19.5]} 81...
Qxg7 {[%clk 0:00:16]} 82. Ke7 {[%clk 0:00:20.8]} 82... Ke5 {[%clk 0:00:16.3]}
83. Ke8 {[%clk 0:00:21.5]} 83... Ke6 {[%clk 0:00:17.5]} 84. f8=Q {[%clk
0:00:22.8]} 84... Qd7# {[%clk 0:00:18.5]} 0-1